bitfinex/quotes_ETHUSD_20240710
["timestamp","ask_amount","ask_price","bid_price","bid_amount"]
[1720584578503,0.20681233,3111.0,3109.6,0.06428363]
[1720584578703,0.20681233,3111.2,3109.8,1.19001819]
[1720584579020,0.20681233,3111.2,3109.9,0.06428353]
[1720584580067,0.20681233,3110.6,3109.0,1.19001819]
[1720584580380,2.2828,3111.6,3108.3,3.319]
[1720584580381,0.20681233,3110.9,3109.1,2.63737327]
[1720584580527,2.2828,3111.6,3109.4,2.57284]
[1720584580528,0.20681233,3111.1,3109.4,2.57284]
[1720584580722,0.20681233,3111.1,3109.5,0.064286]
[1720584581328,0.20681233,3111.1,3109.0,0.06428542]
[1720584581533,0.20681233,3111.1,3109.4,2.57283]
[1720584581780,0.20681233,3111.1,3109.5,0.06428794]
[1720584581984,0.20681233,3110.7,3109.5,3.06428794]
[1720584582183,0.20681233,3110.3,3108.6,1.19001819]
[1720584582331,2.4829,3110.6,3108.6,2.5735]
[1720584582332,0.20681233,3110.4,3108.6,2.5735]
[1720584582526,0.20681233,3110.4,3108.8,2.57333]
[1720584582765,0.20681233,3110.2,3108.2,2.4322]
[1720584582964,0.20681233,3109.8,3108.3,2.57374]
[1720584583188,0.20681233,3110.0,3107.7,3.319]
[1720584583397,0.20681233,3110.0,3108.5,2.57351]
[1720584583672,0.20681233,3109.6,3108.1,1.19001819]
[1720584583888,0.20681233,3109.4,3108.1,1.19001819]
[1720584584190,2.4121,3109.4,3108.2,0.06432096]
[1720584584333,2.4121,3109.4,3108.3,0.06431901]
[1720584584827,2.4121,3109.4,3108.4,0.06432189]
[1720584585029,2.61891233,3109.4,3108.0,0.06431987]
[1720584585451,2.61891233,3109.4,3108.2,1.19001819]
[1720584585670,2.61891233,3109.4,3108.2,1.25434092]
[1720584585866,2.61891233,3109.4,3108.2,0.06432273]
[1720584586382,0.20681233,3108.9,3108.1,0.0643228]
[1720584586676,0.20681233,3108.9,3107.7,0.0643338]
[1720584586841,0.20681233,3108.9,3107.8,0.06433382]
[1720584587168,0.20681233,3109.2,3107.8,0.06433382]
[1720584587692,2.4121,3109.4,3108.2,1.19001819]
[1720584587833,2.4121,3109.4,3108.3,0.06432048]
[1720584588236,2.61891233,3109.4,3108.1,0.06432049]
[1720584588484,0.20681233,3109.0,3107.4,0.06432607]
[1720584588680,0.20681233,3109.0,3107.9,0.06432607]
[1720584588973,0.20681233,3108.8,3107.6,0.06433389]
[1720584589125,2.70769227,3109.4,3107.5,1.25435208]
[1720584589126,0.20681233,3108.6,3107.5,1.25435208]
[1720584589327,0.20681233,3109.1,3107.5,1.25435208]
[1720584589534,0.20681233,3108.6,3107.4,1.2543521]
[1720584589931,0.20681233,3109.0,3107.4,1.2543521]
[1720584590267,0.20681233,3108.6,3107.4,1.2543521]
[1720584590626,0.20681233,3108.6,3107.4,1.19001819]
[1720584590954,0.20681233,3108.6,3107.4,1.25435761]
[1720584591164,0.20681233,3108.4,3107.1,0.06433942]
[1720584591472,2.64211233,3108.3,3106.9,0.06434384]
[1720584591641,2.64211233,3108.3,3107.1,0.06434384]
[1720584591864,2.64211233,3108.3,3106.8,3.76500819]
[1720584591865,2.64211233,3108.3,3106.9,0.06434485]
[1720584592060,0.20681233,3107.9,3106.5,1.25436473]
[1720584592358,0.20681233,3107.5,3106.2,0.06435568]
[1720584592545,0.20681233,3107.5,3106.3,1.25438155]
[1720584592742,2.64211233,3108.3,3106.7,1.19001819]
[1720584592942,2.64211233,3108.3,3106.9,1.19001819]
[1720584593289,2.64211233,3108.3,3107.0,0.06434574]
[1720584593843,0.20681233,3107.8,3106.6,4.25436486]
[1720584594049,0.20681233,3107.8,3106.6,1.19001819]
[1720584594398,0.20681233,3107.8,3106.0,0.25]
[1720584594399,0.20681233,3107.5,3106.2,1.25437438]
[1720584594617,0.20681233,3107.3,3106.2,1.25438101]
[1720584594812,0.20681233,3107.5,3106.4,1.19001819]
[1720584594961,0.20681233,3107.7,3106.5,0.06436162]
[1720584595358,0.20681233,3107.3,3106.6,0.06435666]
[1720584595656,2.395,3107.6,3106.0,0.25]
[1720584595657,0.20681233,3107.0,3106.0,0.25]
[1720584596091,0.20681233,3107.3,3106.0,0.31437165]
[1720584596288,0.20681233,3106.8,3106.0,0.25]
[1720584596498,2.395,3107.6,3106.0,0.25]
[1720584596499,0.20681233,3106.6,3106.0,0.25]
[1720584597075,0.20681233,3106.2,3106.0,0.25]
[1720584597689,0.00681233,3106.2,3106.0,0.25]
[1720584598294,0.00681233,3105.5,3104.3,1.2544162]
[1720584598598,0.00681233,3105.7,3104.4,0.06440662]
[1720584598801,0.00681233,3105.8,3104.6,1.19001819]
[1720584599101,2.4385,3106.1,3104.2,2.57714]
[1720584599102,0.00681233,3105.6,3104.2,2.57714]
[1720584599303,2.4385,3106.1,3104.2,0.06440008]
[1720584599304,0.00681233,3105.4,3104.2,0.06440008]
[1720584599608,0.00681233,3105.2,3103.7,0.06439628]
[1720584599802,2.3518,3105.4,3103.7,0.06441507]
[1720584599803,0.00681233,3104.9,3103.7,0.06441507]
[1720584600007,2.3518,3105.4,3103.3,1.19001819]
[1720584600008,0.00681233,3104.4,3103.3,1.19001819]
[1720584600310,2.58698,3105.4,3103.3,0.06441512]
[1720584600311,0.00681233,3105.1,3103.3,0.06441512]
[1720584600612,3.319,3106.7,3103.3,0.06441512]
[1720584600613,0.00681233,3105.8,3104.3,2.57707]
[1720584600804,0.00681233,3105.8,3104.4,0.06439663]
[1720584601007,0.00681233,3105.3,3104.1,0.06439663]
[1720584601164,0.00681233,3104.9,3103.5,1.19001819]
[1720584601377,0.23437,3106.0,3103.6,0.06441517]
[1720584601378,0.00681233,3105.7,3103.6,0.06441517]
[1720584601667,0.00681233,3105.9,3104.5,1.19001819]
[1720584601902,2.3437,3106.1,3104.5,1.19001819]
[1720584601903,2.3437,3106.1,3104.6,0.06439442]
[1720584602089,2.3437,3106.1,3104.0,2.64170113]
[1720584602090,0.00681233,3105.6,3104.0,2.64170113]
[1720584602299,0.00681233,3105.5,3104.0,2.64170113]
[1720584602519,0.00681233,3105.4,3104.1,3.0]
[1720584602683,0.00681233,3105.4,3104.2,0.06438698]
[1720584602878,0.33719223,3106.0,3104.0,5.57724]
[1720584602879,0.33719223,3106.0,3104.3,0.0644028]
[1720584603083,0.33719223,3106.0,3104.6,2.57681]
[1720584603295,0.33719223,3106.0,3104.9,1.19001819]
[1720584603625,2.3437,3106.1,3105.0,0.06438836]
[1720584603921,0.30998181,3108.1,3105.0,0.06438836]
[1720584603922,0.3371126,3106.6,3105.1,1.19001819]
[1720584604122,0.3371126,3106.6,3105.6,2.57599]
[1720584604436,2.3426,3106.9,3105.7,0.06436048]
[1720584604583,0.33703365,3107.1,3105.8,0.06436776]
[1720584604785,2.47401233,3107.5,3106.3,1.19001819]
[1720584604992,0.00681233,3107.3,3106.1,3.06436394]
[1720584605195,0.00681233,3106.6,3105.9,3.0]
[1720584605518,0.00681233,3106.6,3105.2,3.06438054]
[1720584605703,0.00681233,3106.6,3105.3,0.06438031]
[1720584606014,2.4672,3107.5,3105.5,2.57606]
[1720584606015,2.47401233,3107.5,3105.5,2.57606]
[1720584606217,2.4672,3107.5,3106.0,2.57558]
[1720584606420,2.4672,3107.5,3106.1,3.06436159]
[1720584606421,2.47401233,3107.5,3106.1,3.06436159]
[1720584606615,2.47401233,3107.5,3106.1,0.06436159]
[1720584606817,0.00681233,3107.2,3105.8,3.06436168]
[1720584607019,0.00681233,3107.4,3105.9,0.06436503]
[1720584607192,0.00681233,3107.4,3105.9,2.64009503]
[1720584607523,0.00681233,3107.4,3106.0,3.0]
[1720584607735,0.00681233,3107.4,3106.1,0.06436258]
[1720584607884,2.4672,3107.5,3106.2,2.57546]
[1720584608084,0.34403364,3108.1,3106.6,2.57515]
[1720584608341,0.00681233,3107.8,3106.7,3.06434998]
[1720584608517,0.00681233,3107.6,3106.4,0.06434998]
[1720584609156,0.00681233,3107.8,3106.4,0.06434998]
[1720584609433,2.46101233,3108.2,3106.4,2.63958998]
[1720584609635,2.46101233,3108.2,3106.7,2.57504]
[1720584609849,2.4542,3108.2,3106.8,3.06434609]
[1720584610133,0.00681233,3107.7,3106.7,3.0]
[1720584610286,0.00681233,3107.7,3106.6,0.06434955]
[1720584610490,0.00681233,3107.9,3106.7,0.06435654]
[1720584610722,2.69962,3108.2,3106.7,0.06435654]
[1720584610723,2.4542,3108.2,3106.9,2.57483]
[1720584610900,2.4542,3108.2,3106.8,0.06435408]
[1720584610901,2.4542,3108.2,3107.0,5.63916382]
[1720584611115,2.4542,3108.2,3107.0,3.06434382]
[1720584611340,2.4542,3108.2,3107.0,0.06434382]
[1720584611633,2.4542,3108.2,3107.1,2.57471]
[1720584611813,2.4542,3108.2,3107.2,3.0]
[1720584612337,2.4542,3108.2,3107.1,3.06434273]
[1720584612700,2.4542,3108.2,3107.2,3.0]
[1720584613032,0.00681233,3108.8,3107.3,1.19001819]
[1720584613234,0.00681233,3108.8,3107.3,1.25435677]
[1720584613441,0.00681233,3108.6,3107.3,0.06433858]
[1720584613604,0.00681233,3108.6,3107.3,1.25435677]
[1720584613804,0.00681233,3109.0,3107.3,0.06433858]
[1720584614041,0.00681233,3109.2,3107.3,1.25435677]
[1720584614357,0.00681233,3109.2,3107.6,5.14858]
[1720584614492,0.00681233,3109.2,3107.7,0.06432817]
[1720584614842,0.00681233,3109.2,3107.8,0.06432817]
[1720584615139,0.00681233,3109.6,3108.0,1.19001819]
[1720584615341,0.00681233,3109.6,3108.2,2.57379]
[1720584615646,0.00681233,3109.6,3108.3,3.06431824]
[1720584615856,2.49001233,3109.1,3108.3,3.0]
[1720584616135,0.00681233,3109.5,3107.8,5.63842822]
[1720584616343,0.00681233,3109.2,3107.9,2.63838757]
[1720584616642,0.00681233,3109.2,3108.0,3.0]
[1720584616985,0.00681233,3109.6,3108.1,2.638186]
[1720584617279,0.00681233,3109.6,3108.2,3.0]
[1720584617439,0.00681233,3109.4,3108.1,0.064326]
[1720584617871,0.00681233,3109.1,3107.9,3.06432834]
[1720584618034,0.00681233,3108.9,3107.6,0.06432834]
[1720584618236,0.00681233,3108.5,3107.3,0.06433474]
[1720584618976,0.00681233,3108.4,3107.3,0.06434272]
[1720584619190,0.00681233,3108.6,3107.3,0.06434272]
[1720584619470,0.00681233,3108.7,3107.3,0.06434272]
[1720584619672,0.60415018,3109.5,3107.3,0.06434272]
[1720584619673,0.00681233,3108.9,3107.5,1.19001819]
[1720584619879,0.00681233,3108.9,3107.6,0.06433344]
[1720584620078,0.00681233,3109.1,3107.6,0.06433344]
[1720584620287,0.00681233,3109.1,3107.6,3.24278344]
[1720584620588,0.00681233,3109.1,3107.7,3.0]
[1720584620874,2.4832,3109.7,3107.8,0.06433714]
[1720584620875,0.00681233,3108.7,3107.8,0.06433714]
[1720584621093,0.00681233,3108.5,3107.3,3.06433787]
[1720584621242,2.25911233,3108.5,3107.3,3.06433787]
[1720584621439,2.2523,3108.5,3107.3,4.25435606]
[1720584621990,2.2523,3108.5,3106.6,2.3051]
[1720584621991,0.00681233,3108.3,3106.6,8.49455711]
[1720584622137,0.00681233,3108.1,3106.7,0.06434954]
[1720584622336,0.00681233,3108.1,3106.8,0.06434874]
[1720584622575,2.47753,3108.5,3106.8,0.06434874]
[1720584622576,0.00681233,3108.4,3106.8,0.06434874]
[1720584622882,0.00681233,3108.4,3106.6,1.19001819]
[1720584622883,0.00681233,3107.6,3106.6,1.19001819]
[1720584623059,2.40291233,3107.3,3106.1,0.06436156]
[1720584623789,2.3961,3107.3,3106.1,0.06436156]
[1720584624088,0.00681233,3107.2,3105.9,1.19001819]
[1720584624247,0.00681233,3107.2,3106.0,0.06436784]
[1720584624462,2.3961,3108.0,3106.0,0.06436784]
[1720584624673,2.3961,3108.0,3106.9,1.19001819]
[1720584624867,2.3961,3108.0,3107.0,0.06434712]
[1720584625863,2.3961,3108.0,3107.3,1.19001819]
[1720584626064,0.00681233,3108.6,3107.3,1.19001819]
[1720584626266,2.3961,3108.8,3106.9,3.0643399]
[1720584626267,0.00681233,3108.3,3106.9,3.0643399]
[1720584626498,0.00681233,3108.5,3106.9,0.0643399]
[1720584626794,0.00681233,3108.7,3107.2,1.19001819]
[1720584626961,0.00681233,3108.7,3107.3,0.06433991]
[1720584627179,2.3961,3108.8,3107.4,1.19001819]
[1720584627475,2.3961,3108.8,3107.5,0.06433774]
[1720584627681,2.3961,3108.8,3107.6,1.19001819]
[1720584627682,2.40291233,3108.8,3107.6,1.19001819]
[1720584627895,2.3961,3108.8,3107.7,0.0643346]
[1720584628054,2.3961,3108.8,3107.7,0.06433097]
[1720584628400,0.00681233,3108.5,3107.4,3.0]
[1720584628611,0.00681233,3108.6,3107.4,0.06434149]
[1720584628768,0.00681233,3109.1,3107.6,2.57425]
[1720584628971,0.00681233,3109.4,3107.7,3.06432638]
[1720584629156,0.00681233,3109.4,3108.0,1.19001819]
[1720584629359,0.00681233,3109.4,3108.1,0.0643235]
[1720584629588,2.3774,3109.7,3108.1,0.0643235]
[1720584629589,0.00681233,3109.6,3108.1,0.0643235]
[1720584629804,2.3774,3109.7,3108.1,0.0643235]
[1720584630013,0.00681233,3109.6,3108.3,1.19001819]
[1720584630170,0.00681233,3109.1,3107.8,3.319]
[1720584630500,0.00681233,3109.3,3107.9,0.06433167]
[1720584630682,0.00681233,3109.6,3108.1,2.57385]
[1720584630891,2.3774,3109.7,3108.2,2.63812779]
[1720584631108,2.3774,3109.7,3108.3,1.254336]
[1720584631264,2.38421233,3109.7,3108.5,1.19001819]
[1720584631608,2.38421233,3109.7,3108.5,3.82791601]
[1720584631609,2.3774,3109.7,3108.5,3.82791601]
[1720584631772,2.3774,3109.7,3108.6,3.0]
[1720584632104,2.3774,3109.7,3108.6,3.06431445]
[1720584632262,0.00681233,3109.6,3108.6,3.0]
[1720584632461,2.3774,3109.7,3108.7,0.0643179]
[1720584632692,2.3774,3109.7,3108.8,0.06431447]
[1720584632873,2.3774,3109.7,3108.8,1.25433266]
[1720584633076,0.00681233,3110.2,3108.8,1.25433266]
[1720584633291,0.00681233,3110.2,3108.9,2.5732]
[1720584633495,0.00681233,3110.2,3108.8,0.06431447]
[1720584633496,2.3643,3110.3,3109.0,5.63747513]
[1720584633703,2.3643,3110.3,3109.1,3.0]
[1720584633907,0.00681233,3110.8,3109.4,1.19001819]
[1720584634207,0.00681233,3110.8,3109.2,0.06429956]
[1720584634208,0.00681233,3110.5,3109.2,0.06429956]
[1720584634360,0.23319123,3110.8,3109.1,3.0]
[1720584634361,0.00681233,3109.8,3109.1,3.0]
[1720584634565,2.33191233,3109.8,3108.7,3.06431434]
[1720584635106,2.33191233,3109.8,3108.7,3.0643141]
[1720584635107,2.3251,3109.8,3108.7,3.0643141]
[1720584635461,2.3251,3109.8,3108.7,3.0]
[1720584635663,2.3251,3109.8,3108.7,3.06431371]
[1720584635922,0.00681233,3110.0,3108.8,1.25432871]
[1720584636217,0.00681233,3110.0,3108.8,0.06431052]
[1720584636854,0.00681233,3110.2,3108.8,0.06431052]
[1720584637162,0.00681233,3110.2,3108.8,2.63764052]
[1720584637376,0.00681233,3110.4,3108.9,3.0]
[1720584637659,0.00681233,3110.4,3109.1,1.19001819]
[1720584637963,0.00681233,3110.4,3109.1,3.06430117]
[1720584638130,0.00681233,3110.4,3109.2,3.0]
[1720584638322,0.00681233,3110.4,3109.3,1.2543229]
[1720584639038,2.339,3110.5,3109.3,1.2543229]
[1720584639240,0.00681233,3111.0,3109.5,2.57272]
[1720584639437,0.00681233,3111.0,3109.3,2.63722471]
[1720584639438,0.00681233,3111.0,3109.7,2.57253]
[1720584639649,0.00681233,3111.0,3109.8,3.06429004]
[1720584639840,0.00681233,3110.8,3109.8,3.0]
[1720584640034,2.4535,3111.2,3109.4,4.25431252]
[1720584640035,0.00681233,3110.6,3109.4,4.25431252]
[1720584640259,0.00681233,3110.8,3109.4,3.06429433]
[1720584640466,0.00681233,3110.6,3109.4,4.25431252]
[1720584640648,0.00681233,3110.9,3109.5,3.0]
[1720584640857,0.00681233,3110.9,3109.6,0.06429646]
[1720584641069,0.00681233,3111.1,3109.6,0.06429646]
[1720584641378,0.00681233,3111.1,3109.8,1.19001819]
[1720584641541,0.00681233,3111.1,3109.9,0.06428804]
[1720584642180,0.00681233,3111.1,3110.0,1.19001819]
[1720584642387,2.4535,3111.2,3110.1,0.06428465]
[1720584642981,0.64679684,3112.6,3110.1,3.06428465]
[1720584642982,0.00681233,3111.6,3110.1,3.06428465]
[1720584643142,0.00681233,3111.6,3110.2,2.57218]
[1720584643336,0.00681233,3111.6,3110.3,3.06427808]
[1720584643569,2.43041233,3111.8,3110.3,5.63635808]
[1720584643788,0.00681233,3111.5,3110.3,3.06427808]
[1720584643936,0.00681233,3111.5,3110.3,3.0]
[1720584644134,0.00681233,3112.0,3110.6,2.57181]
[1720584644444,0.00681233,3112.0,3110.8,1.19001819]
[1720584644768,0.00681233,3112.0,3110.8,0.06426898]
[1720584644943,0.00681233,3111.8,3110.7,3.0]
[1720584645136,0.00681233,3111.8,3110.5,3.0]
[1720584645343,0.00681233,3112.2,3110.6,0.06427648]
[1720584645585,0.00681233,3112.2,3110.8,2.57168]
[1720584645739,0.00681233,3111.8,3110.9,3.0]
[1720584645940,0.00681233,3112.0,3110.6,0.06426473]
[1720584646195,0.25969133,3112.2,3110.6,1.25428292]
[1720584646352,0.25969133,3112.2,3110.5,3.0]
[1720584646353,0.00681233,3111.8,3110.5,3.06427427]
[1720584646685,0.00681233,3111.6,3110.4,3.319]
[1720584646869,0.00681233,3111.6,3110.2,0.06428098]
[1720584647094,0.00681233,3111.6,3110.2,0.06428093]
[1720584647587,0.00681233,3111.6,3110.3,0.06428096]
[1720584647751,0.00681233,3111.6,3110.2,0.06428096]
[1720584648274,0.00681233,3111.6,3110.2,1.25429915]
[1720584648854,0.252879,3112.2,3109.5,7.47]
[1720584648855,0.00681233,3110.9,3109.5,7.47]
[1720584649174,2.392,3111.2,3109.6,0.06429846]
[1720584649557,2.392,3111.2,3109.6,2.63692846]
[1720584649801,2.392,3111.2,3109.6,0.06429846]
[1720584650001,2.392,3111.2,3109.6,2.63696846]
[1720584650183,2.392,3111.2,3109.7,3.0]
[1720584650504,2.392,3111.2,3110.0,1.19001819]
[1720584650705,2.392,3111.2,3110.1,0.0642905]
[1720584651317,2.6312,3111.2,3109.7,3.0]
[1720584651613,2.6312,3111.2,3109.5,1.19001819]
[1720584651784,2.6312,3111.2,3109.5,1.2543106]
[1720584651980,2.6312,3111.2,3109.5,1.19001819]
[1720584652171,0.26312,3111.1,3109.5,1.19001819]
[1720584652371,0.26312,3111.1,3109.1,3.319]
[1720584652372,0.26312,3111.1,3109.1,3.38329666]
[1720584652885,0.26312,3111.1,3109.3,3.247]
[1720584653210,0.55,3111.0,3109.3,3.247]
[1720584653410,0.320512,3111.0,3109.4,0.06430578]
[1720584653584,0.320512,3111.0,3109.3,3.247]
[1720584653973,0.320512,3111.0,3109.3,3.31130601]
[1720584654312,0.320512,3111.0,3109.3,3.3113002]
[1720584654823,2.392,3111.2,3109.3,3.247]
[1720584654963,2.392,3111.2,3109.3,5.88415025]
[1720584655169,2.392,3111.2,3109.4,3.0]
[1720584655485,2.392,3111.2,3109.6,1.19001819]
[1720584655669,2.6312,3111.2,3109.6,1.19001819]
[1720584655879,2.6312,3111.2,3109.4,3.06429719]
[1720584656080,0.33684491,3111.1,3109.7,3.247]
[1720584656308,0.33684491,3111.1,3109.8,3.0]
[1720584658720,0.33684491,3111.1,3109.9,0.06429662]
[1720584659010,0.33684491,3111.1,3109.8,3.0]
[1720584660189,0.6097294,3111.1,3109.8,3.0]
[1720584660823,2.2872,3110.9,3108.9,3.247]
[1720584660979,0.55,3111.0,3108.6,8.66001819]
[1720584660980,2.2872,3110.7,3108.6,7.47]
[1720584661180,0.31471818,3110.6,3108.5,3.247]
[1720584661431,0.86471818,3110.6,3108.2,1.19001819]
[1720584661612,0.31519182,3110.5,3108.8,1.19001819]
[1720584661792,0.31519182,3110.5,3108.9,3.31131663]
[1720584661981,2.2872,3110.7,3108.9,3.31131663]
[1720584662717,2.2872,3110.7,3109.0,3.0]
[1720584662891,2.2872,3110.7,3109.1,0.0643075]
[1720584663094,2.2872,3110.7,3109.0,3.0643078]
[1720584663406,2.51592,3110.7,3108.9,3.247]
[1720584663723,2.51592,3110.7,3108.6,1.19001819]
[1720584663945,2.3472,3110.5,3108.5,3.247]
[1720584664083,0.28972,3110.4,3108.5,3.247]
[1720584664279,2.4024,3110.2,3108.1,3.247]
[1720584664527,0.30998181,3110.0,3108.1,3.247]
[1720584664825,2.4024,3109.9,3107.7,4.43701819]
[1720584664994,0.27123818,3109.8,3107.7,4.43701819]
[1720584665195,0.55,3109.7,3107.7,4.43701819]
[1720584665414,0.55,3109.7,3107.8,0.06433609]
[1720584665619,0.27123818,3109.8,3107.8,0.06433609]
[1720584665968,0.27123818,3109.8,3107.4,1.25434993]
[1720584666142,3.247,3110.4,3107.6,3.247]
[1720584666143,2.283,3109.6,3107.6,3.247]
[1720584666455,2.283,3109.6,3107.3,0.0643361]
[1720584666637,0.55,3109.5,3107.3,0.0643361]
[1720584666838,2.283,3109.4,3107.1,3.247]
[1720584667000,2.283,3109.2,3108.7,0.00471046]
[1720584667203,2.283,3109.2,3107.5,3.10171046]
[1720584667426,2.283,3109.2,3107.6,3.31134074]
[1720584667706,2.283,3109.2,3107.2,3.247]
[1720584667944,0.55,3109.3,3107.0,1.19001819]
[1720584667945,2.283,3109.0,3107.0,1.19001819]
[1720584668270,2.283,3109.0,3106.8,3.247]
[1720584668271,2.59298181,3109.0,3106.4,4.43701819]
[1720584668469,4.0803,3109.1,3106.6,1.19001819]
[1720584668470,2.283,3108.8,3106.6,1.19001819]
[1720584668767,2.283,3108.8,3106.7,3.31135053]
[1720584668909,0.31163,3108.7,3106.8,0.06434808]
[1720584669309,0.31163,3108.7,3106.3,2.57532]
[1720584669310,2.3025,3108.5,3106.3,3.247]
[1720584669564,0.55,3108.4,3106.3,3.31136254]
[1720584670450,0.55,3108.4,3106.3,3.247]
[1720584670647,0.28525,3108.3,3106.3,3.247]
[1720584670861,0.28525,3108.3,3106.3,3.31136537]
[1720584670862,0.55,3108.2,3106.3,3.31136537]
[1720584671067,2.3025,3108.5,3106.7,3.247]
[1720584671367,2.3025,3108.5,3106.8,0.06435622]
[1720584671368,0.33710253,3108.3,3106.8,0.06435622]
[1720584671511,0.33710253,3108.3,3107.1,3.247]
[1720584671707,0.33710253,3108.3,3107.2,3.06434081]
[1720584671953,0.33710253,3108.3,3107.2,3.0]
[1720584672123,0.26396025,3108.3,3107.2,3.0]
[1720584672330,0.26396025,3108.3,3106.6,2.57515]
[1720584672544,0.26396025,3108.3,3106.7,3.0]
[1720584672748,2.4975,3108.2,3106.7,3.0]
[1720584672966,0.27614602,3108.1,3106.4,7.47]
[1720584673252,0.27614602,3108.1,3106.2,2.57549]
[1720584673885,2.4975,3108.0,3106.0,3.83002471]
[1720584674188,0.55,3107.9,3106.0,2.57564]
[1720584674386,0.55,3107.9,3106.0,1.19001819]
[1720584674531,2.4975,3108.0,3106.0,1.19001819]
[1720584674532,2.4975,3108.0,3106.3,2.57541]
[1720584674736,2.4975,3108.0,3106.4,3.0]
[1720584674978,2.4975,3108.0,3106.4,1.25437855]
[1720584675144,2.4975,3108.0,3106.6,2.57509]
[1720584675351,2.4975,3108.0,3106.7,2.9]
[1720584675663,0.24975,3107.9,3106.4,5.57529]
[1720584675978,2.4975,3108.0,3106.7,2.575]
[1720584676150,2.4975,3108.0,3106.4,3.0]
[1720584676338,2.4975,3108.0,3106.2,2.57548]
[1720584676677,2.4975,3108.0,3106.0,1.19001819]
[1720584676678,2.4975,3108.0,3106.3,2.5754]
[1720584676882,0.24975,3107.9,3106.4,3.76530819]
[1720584677035,0.24975,3107.9,3106.4,2.57529]
[1720584677263,0.24975,3107.9,3106.5,2.57522]
[1720584677596,0.24975,3107.9,3105.8,5.82276]
[1720584677597,3.247,3107.5,3105.6,2.57598]
[1720584677733,3.247,3107.0,3105.4,2.57615]
[1720584677939,2.3285,3106.9,3105.5,2.57606]
[1720584678180,2.3285,3106.9,3105.5,2.576]
[1720584678476,2.3285,3106.9,3105.6,0.06438808]
[1720584678686,2.3285,3106.9,3105.8,2.5758]
[1720584678982,2.3285,3106.9,3106.1,2.5755]
[1720584679188,2.3285,3106.9,3105.6,3.76594819]
[1720584679486,2.56135,3106.9,3105.2,2.57625]
[1720584679652,0.55,3106.8,3105.5,2.57607]
[1720584679984,0.55,3106.8,3105.6,3.0]
[1720584680287,0.311135,3106.7,3105.4,5.57612]
[1720584680641,0.311135,3106.7,3105.0,7.47]
[1720584680962,0.55,3106.6,3105.0,10.04648]
[1720584681187,0.55,3106.6,3104.0,1.51221819]
[1720584681188,2.3447,3106.5,3104.0,1.51221819]
[1720584681392,0.61417,3106.4,3104.9,2.57657]
[1720584681681,1.16417,3106.4,3104.9,2.57657]
[1720584682008,0.61417,3106.4,3105.4,2.57608]
[1720584682211,2.3447,3106.5,3105.6,2.57598]
[1720584682509,2.3447,3106.5,3105.3,2.57623]
[1720584682872,2.3447,3106.5,3105.6,2.57594]
[1720584683114,2.3447,3106.5,3105.4,2.57613]
[1720584683397,2.3447,3106.5,3105.5,3.0]
[1720584683768,2.3447,3106.5,3105.4,2.57615]
[1720584683769,2.57917,3106.5,3105.4,3.0]
[1720584684098,2.57917,3106.5,3105.2,3.0]
[1720584684287,2.57917,3106.5,3105.0,3.76649819]
[1720584684487,0.257917,3106.4,3105.0,2.57646]
[1720584684816,0.257917,3106.4,3104.5,2.57683]
[1720584685010,0.55,3106.3,3104.5,2.5769]
[1720584685197,0.8102617,3106.3,3104.8,2.57664]
[1720584685366,2.2537,3106.2,3104.2,2.57707]
[1720584685564,0.55,3106.1,3104.3,2.57702]
[1720584685805,2.2537,3106.0,3104.0,2.89951]
[1720584686010,0.55,3105.9,3104.0,0.3222]
[1720584686268,0.55,3105.9,3104.2,1.19001819]
[1720584686552,2.3985,3105.8,3104.0,0.3222]
[1720584686851,2.706907,3105.8,3104.1,2.57722]
[1720584687150,2.4258,3105.6,3103.9,0.3222]
[1720584687742,0.88742167,3105.5,3103.8,0.3222]
[1720584687942,3.88742167,3105.5,3103.8,0.3222]
[1720584688102,0.63132217,3105.4,3103.8,0.3222]
[1720584688304,0.55,3105.3,3103.8,0.3222]
[1720584689051,2.3328,3105.2,3103.5,0.3222]
[1720584689208,0.28828,3105.1,3103.5,2.89993]
[1720584689407,0.28828,3105.1,3103.7,0.3222]
[1720584689608,2.3328,3105.2,3103.9,0.3222]
[1720584690470,2.3328,3105.0,3103.9,0.3222]
[1720584690739,2.3328,3105.0,3103.3,0.3222]
[1720584690740,0.55,3104.9,3103.3,0.3222]
[1720584690940,0.83828,3104.9,3103.3,0.3222]
[1720584691263,2.3693,3104.8,3102.9,0.16029756]
[1720584691543,2.3693,3104.6,3102.6,7.47]
[1720584691766,2.3693,3104.6,3101.9,2.57905]
[1720584691767,4.893,3104.5,3101.9,2.57905]
[1720584691943,0.30998181,3104.3,3101.7,2.57922]
[1720584692107,2.3693,3104.2,3101.8,2.57914]
[1720584692307,0.26792818,3104.1,3101.9,3.76907819]
[1720584692508,2.8803,3104.0,3101.5,2.57937]
[1720584692753,2.8803,3104.0,3102.3,0.06446603]
[1720584692754,2.3303,3103.8,3102.3,0.06446603]
[1720584692911,2.3303,3103.8,3101.5,4.52601819]
[1720584693114,0.55,3103.7,3101.6,0.06445703]
[1720584693305,0.28803,3103.6,3101.4,1.51221819]
[1720584693646,2.817,3103.5,3101.1,2.57972]
[1720584694159,2.817,3103.5,3101.2,0.06447651]
[1720584694457,2.817,3103.5,3101.5,1.19001819]
[1720584694860,2.817,3103.5,3101.2,2.57961]
[1720584695007,2.817,3103.5,3101.3,1.19001819]
[1720584695331,6.21,3103.5,3102.3,0.3222]
[1720584695532,2.2968,3103.3,3102.3,0.3222]
[1720584695746,1.07968,3103.2,3101.2,2.57962]
[1720584695948,1.07968,3103.2,3101.3,2.64403428]
[1720584696190,1.07968,3103.2,3101.6,2.57925]
[1720584696447,1.07968,3103.2,3101.3,0.06447428]
[1720584696448,0.55,3103.2,3101.4,0.3222]
[1720584696621,0.55,3103.2,3101.4,2.90167]
[1720584696818,2.2968,3103.3,3101.7,2.57921]
[1720584697023,2.2968,3103.3,3101.8,0.06446586]
[1720584697331,2.2998,3103.9,3102.3,2.57865]
[1720584697537,1.62660638,3103.9,3102.8,2.57828]
[1720584697745,0.42985774,3103.9,3102.4,3.0]
[1720584697908,0.42985774,3103.9,3102.2,0.1131731]